Cogmind - Beta 12 X4 *** ADVENTURER MODE // 2022.11.11 @ 17:00:50 Player: Deus Result: Destroyed by 8R-AWN with 8R-AWN's Boregun Performance ------------- Evolutions (1) 500 Regions Visited (5) 1000 Robots Destroyed (53) 265 Value Destroyed (1647) 1647 Prototype IDs (27) 540 Alien Tech Used (0) 0 Bonus (439) 439 TOTAL SCORE: 4391 Bonus ------- High Alert Combat Kills 57 Follower Combat Kills 102 Aligned with FarCom 300 Friendly Fire -20 Cogmind --------- Core Integrity 0/400 Matter 223/300 Energy 31/100 System Corruption 5% Temperature Cool (0) Movement Core (50) Location -9/Exiles Parts ------- > --- POWER (1) -------- (None) > --- PROPULSION (2) --- (None) > --- UTILITY (4) ------ (None) > --- WEAPON (2) ------- High-powered Shotgun > --- INVENTORY (5) ---- Light Treads Potential Leg Large Storage Unit Particle Cannon Axe Peak State ------------ > --- POWER ------------ Makeshift Power Source > --- PROPULSION ------- Potential Leg Potential Leg > --- UTILITY ---------- Disposable Heat Sink Large Storage Unit Light Armor Plating > --- WEAPON ----------- Advanced Beam Cannon Advanced Beam Cannon > --- INVENTORY -------- Fission Core Light Treads Light Treads VTOL Module VTOL Module Large Storage Unit Hardened Light Armor Plating Particle Cannon Particle Cannon High-powered Shotgun High-powered Shotgun Mini Grenade Launcher Mini Grenade Launcher Axe [Rating: 37] Favorites ----------- Power Light Nuclear Core Engine Light Ion Engine Power Core Light Nuclear Core Propulsion Light Treads Treads Light Treads Leg Aluminum Leg Wheel Wheel Flight Unit VTOL Module Utility Large Storage Unit Device Disposable Heat Sink Storage Large Storage Unit Protection Improved Light Armor Plating Weapon Particle Cannon Energy Gun Medium Laser Energy Cannon Particle Cannon Ballistic Gun Assault Rifle Ballistic Cannon Improved Light Cannon Launcher Grenade Launcher Slashing Weapon Axe Build | -11 -10 -10 -9 -9 -9 ------- Run | Scr Mat Min Mat Min Exi Slots Evolved 2 | . . . 2 . . Power . | . . . . . . Propulsion . | . . . . . . Utility 2 | . . . 2 . . Weapon . | . . . . . . Parts Attached 55 | 1 8 3 29 2 12 Power 6 | . . 1 4 . 1 Engine 4 | . . 1 2 . 1 Core 2 | . . . 2 . . Reactor . | . . . . . . Propulsion 11 | . 4 . 2 . 5 Treads 5 | . 2 . 2 . 1 Leg 2 | . . . . . 2 Wheel 2 | . 2 . . . . Hover . | . . . . . . Flight 2 | . . . . . 2 Utility 11 | 1 2 . 5 2 1 Device 6 | 1 1 . 4 . . Storage 1 | . 1 . . . . Processor . | . . . . . . Hackware . | . . . . . . Protection 4 | . . . 1 2 1 Artifact . | . . . . . . Weapon 27 | . 2 2 18 . 5 Energy Gun . | . . . . . . Energy Cannon 13 | . 2 1 9 . 1 Ballistic Gun 3 | . . . 1 . 2 Ballistic Cannon 1 | . . . 1 . . Launcher 6 | . . 1 3 . 2 Special Weapon . | . . . . . . Impact Weapon . | . . . . . . Slashing Weapon 4 | . . . 4 . . Piercing Weapon . | . . . . . . Special Melee Weapon . | . . . . . . Unidentified Prototypes 2 | . . . 2 . . Parts Lost 19 | . 1 . 3 1 14 Power 3 | . . . 1 . 2 Propulsion 4 | . 1 . . . 3 Utility 7 | . . . 2 1 4 Weapon 5 | . . . . . 5 Highest Loss Streak 14 | . 1 . 2 1 14 To Critical Strikes 2 | . . . . . 2 Average Slot Usage (%) 98 | . 99 100 99 98 95 Engine 5 | . 14 14 2 . . Core 6 | . . . 8 11 9 Treads 21 | . 8 28 22 22 19 Wheel 2 | . 15 . . . . Device 15 | . 14 14 21 13 9 Storage 12 | . 14 14 11 11 10 Protection 9 | . . . 11 17 19 Energy Gun 1 | . 9 . . . . Energy Cannon 20 | . 9 23 21 22 20 Ballistic Gun 1 | . 9 . . . . Naked Turns . | . . . . . . Heaviest Build 40 | 15 34 34 38 40 40 Greatest Support 60 | 20 40 40 40 40 60 Greatest Overweight (x) 1 | . 1 . . . . Average Overweight (x) . | . . . . . . Largest Inventory Capacity 15 | 8 15 15 15 15 15 Average Capacity 14 | 8 14 15 15 15 14 Most Carried 15 | 7 15 15 15 15 15 Average Carried 14 | 6 11 14 14 15 14 Final Capacity 15 | 8 15 15 15 15 5 Final Carried 15 | 7 15 15 15 15 5 Class Distribution -------------------- 100% | Mutant Dominant Class ---------------- Mutant | -10/Materials Mutant | -10/Mines Mutant | -9/Materials Mutant | -9/Mines Mutant | -9/Exiles Resources | -11 -10 -10 -9 -9 -9 ----------- Run | Scr Mat Min Mat Min Exi Matter Collected 791 | 216 150 60 319 39 7 Remotely . | . . . . . . Salvage Created 2109 | 103 401 352 906 223 124 Parts 108 | 3 16 18 51 13 7 Haulers Intercepted 3 | . 1 . 2 . . Recyclers Shooed . | . . . . . . Parts Field Recycled . | . . . . . . Retrieved Matter . | . . . . . . Parts Self-Destructed . | . . . . . . Prevented . | . . . . . . Kills | -11 -10 -10 -9 -9 -9 ------- Run | Scr Mat Min Mat Min Exi Combat Hostiles Destroyed 47 | . 9 9 24 5 . Guns 4 | . 2 . 2 . . Cannons 37 | . 7 7 18 5 . AOE 6 | . . 2 4 . . Classes Destroyed 7 | 2 2 . 2 . 1 Tunneler 1 | 1 . . . . . Hauler 3 | . 1 . 2 . . Recycler 1 | 1 . . . . . Swarmer 8 | . . . 8 . . Grunt 31 | . 9 9 8 5 . Sentry 8 | . . . 8 . . Zionite 1 | . . . . . 1 Best Kill Streak 6 | 2 5 4 6 3 1 Combat Bots Only 6 | . 5 4 6 3 . Max Kills in Single Turn 3 | 1 2 2 3 1 1 Gunslinging . | . . . . . . Exploded 3 | . . 2 3 . . Melee . | . . . . . . Uniques/NPCs Destroyed . | . . . . . . Combat | -11 -10 -10 -9 -9 -9 -------- Run | Scr Mat Min Mat Min Exi Damage Taken 3125 | . 354 140 593 93 1945 Core 479 | . 56 22 100 . 301 Absorbed by Shields . | . . . . . . Regen/Repaired (Parts) 23 | . . . 23 . . Core Remaining (%) 84 | 100 . 68 . . . Volleys Fired 102 | 2 31 15 40 10 4 Largest 2 | 2 2 2 2 2 2 Hottest 136 | 70 136 136 136 136 98 Shots Fired 204 | 4 62 31 79 20 8 Gun 46 | 4 38 . 3 . 1 Cannon 149 | . 24 28 73 20 4 Launcher 9 | . . 3 3 . 3 Special . | . . . . . . Kinetic 28 | 2 19 . 6 . 1 Thermal 167 | 2 43 28 70 20 4 Explosive 9 | . . 3 3 . 3 Electromagnetic . | . . . . . . Robot Hit Streak 53 | 3 52 53 19 10 14 Robot Miss Streak 2 | . 2 1 2 2 1 Penetration Max . | . . . . . . Secondary Targets . | . . . . . . Shots Hit Robots 155 | 3 53 21 57 14 7 Core Hits 80 | 3 18 15 26 7 11 Critical Kills . | . . . . . . Critical Parts Destroyed . | . . . . . . Critical Strikes 2 | 1 1 . . . . Burn 2 | 1 1 . . . . Melee Attacks 5 | . . . 5 . . Impact . | . . . . . . Slashing 5 | . . . 5 . . Piercing . | . . . . . . Sneak Attacks . | . . . . . . Combat Hostiles . | . . . . . . Follow-up Attacks . | . . . . . . Damage Inflicted 3476 | 37 884 569 1462 315 209 Guns 537 | 37 430 . 43 . 27 Cannons 2370 | . 454 406 1170 315 25 Explosions 551 | . . 163 249 . 139 Melee . | . . . . . . Ramming 18 | . . . . . 18 Kinetic 297 | 11 197 . 62 . 27 Thermal 2610 | 26 687 406 1151 315 25 Explosive 551 | . . 163 249 . 139 Electromagnetic . | . . . . . . Impact . | . . . . . . Slashing . | . . . . . . Piercing . | . . . . . . Highest Corruption 5 | . 1 1 1 1 5 Average Corruption 1 | . 1 1 1 1 1 Corruption Purged . | . . . . . . Corruption Blocked . | . . . . . . Effects 29 | . 6 8 1 8 6 Message Errors 10 | . 1 4 1 1 3 Matter Fused 5 | . 2 . . 2 1 Heat Flow Errors 5 | . 2 1 . 2 . Energy Discharges 4 | . 1 2 . 1 . Data Loss (minor) 2 | . . . . 2 . Data Loss (major) 1 | . . . . . 1 Misfires 2 | . . 1 . . 1 Overload Shots . | . . . . . . Overflow Damage 19 | . . . 19 . . Projectiles 19 | . . . 19 . . Explosions . | . . . . . . Melee . | . . . . . . Knockbacks . | . . . . . . Impact . | . . . . . . Kinetic . | . . . . . . Secondary . | . . . . . . Self-Inflicted Damage . | . . . . . . Shots . | . . . . . . Rammed . | . . . . . . Targets Rammed 4 | . . . . . 4 Kicked 4 | . . . . . 4 Crushed . | . . . . . . Highest Temperature 248 | 9 248 193 199 215 183 Average Temperature 89 | 6 94 91 85 108 61 Received Heat Transfer 1183 | . 273 102 225 69 514 Siege Activations . | . . . . . . Robots Corrupted . | . . . . . . Combat Hostiles . | . . . . . . Parts Fried . | . . . . . . Impact Corruptions . | . . . . . . Robots Melted . | . . . . . . Combat Hostiles . | . . . . . . Parts Melted 5 | 1 2 . 2 . . Heat Transferred 4976 | 148 1517 703 1998 555 55 Parts Sabotaged . | . . . . . . Parts Stolen . | . . . . . . Parts Stripped . | . . . . . . Power Chain Reactions . | . . . . . . Missiles Intercepted . | . . . . . . Alert | -11 -10 -10 -9 -9 -9 ------- Run | Scr Mat Min Mat Min Exi Peak Influence 515 | 10 273 325 515 172 . Initial 89 | . 5 89 1 62 . Average 165 | 9 89 139 306 32 . Maximum Alert Level 2 | . 1 1 2 . . Low Security (%) 59 | 100 83 69 15 100 . Level 1 37 | . 16 30 76 . . Level 2 2 | . . . 7 . . Level 3 . | . . . . . . Level 4 . | . . . . . . Level 5 . | . . . . . . High Security . | . . . . . . Max Security . | . . . . . . Squads Dispatched 10 | . 3 . 7 . . Investigation 7 | . 3 . 4 . . Extermination . | . . . . . . Reinforcement 3 | . . . 3 . . Assault . | . . . . . . Garrison . | . . . . . . Intercept . | . . . . . . Searches Triggered . | . . . . . . Construction Impeded . | . . . . . . Haulers Reinforced . | . . . . . . Active Scanning Responses . | . . . . . . Cargo Convoy Interrupts . | . . . . . . Stealth | -11 -10 -10 -9 -9 -9 --------- Run | Scr Mat Min Mat Min Exi Distress Signals 3 | . 1 . 2 . . Communications Jammed . | . . . . . . Distress Signals . | . . . . . . Times Spotted 84 | . 16 10 32 5 21 Peak Tracking Total 19 | . 7 2 7 3 19 Tactical Retreats 5 | . . . 2 . 3 Traps | -11 -10 -10 -9 -9 -9 ------- Run | Scr Mat Min Mat Min Exi Traps Triggered 3 | . 3 . . . . Indirectly . | . . . . . . Trap Hack Attempts . | . . . . . . Triggered . | . . . . . . Disarmed . | . . . . . . Reprogrammed . | . . . . . . Reused . | . . . . . . Traps Extracted . | . . . . . . Installed . | . . . . . . Triggered . | . . . . . . Exploded 1 | . . . . . 1 Machines | -11 -10 -10 -9 -9 -9 ---------- Run | Scr Mat Min Mat Min Exi Machines Disabled 4 | . . 1 1 . 2 Max in Single Turn 2 | . . 1 1 . 2 Machines Sabotaged . | . . . . . . Overloaded Fab Kills . | . . . . . . Hacking | -11 -10 -10 -9 -9 -9 --------- Run | Scr Mat Min Mat Min Exi Machines Accessed 17 | . 6 1 8 . 2 Terminals 11 | . 5 . 6 . . Fabricators . | . . . . . . Repair Stations 1 | . . . 1 . . Recycling Units 1 | . 1 . . . . Scanalyzers 1 | . . . 1 . . Garrison Access . | . . . . . . Total Hacks 55 | . 18 1 26 . 10 Successful 33 | . 9 1 13 . 10 Failed 22 | . 9 . 13 . . Catastrophic 5 | . . . 5 . . Database Lockouts . | . . . . . . Manual 29 | . 10 . 18 . 1 Terminals 37 | . 17 . 20 . . Fabricators . | . . . . . . Repair Stations 2 | . . . 2 . . Recycling Units 1 | . 1 . . . . Scanalyzers 4 | . . . 4 . . Garrison Access . | . . . . . . Terminal Hacks 24 | . 8 1 5 . 10 Record 9 | . . . . . 9 Robot Analysis 3 | . 3 . . . . Prototype ID Bank 1 | . 1 . . . . Open Door 1 | . . 1 . . . Level Access Points 1 | . 1 . . . . Branch Access Points 2 | . . . 2 . . Emergency Access Points 1 | . . . 1 . . Terminal Index 1 | . 1 . . . . Alert Level 1 | . 1 . . . . Recall Reinforcements 1 | . . . 1 . . Zone Layout 2 | . 1 . 1 . . EX-Prototype ID Bank 1 | . . . . . 1 Fabricator Hacks . | . . . . . . Repair Station Hacks 2 | . . . 2 . . Scan Component 1 | . . . 1 . . Repair 1 | . . . 1 . . Recycling Unit Hacks 1 | . 1 . . . . Report Inventory 1 | . 1 . . . . Scanalyzer 4 | . . . 4 . . Insert Component 2 | . . . 2 . . Analyze 2 | . . . 2 . . Garrison Access Hacks . | . . . . . . Unauthorized Hacks 2 | . . . 2 . . Terminals 2 | . . . 2 . . Botnet 2 | . . . 2 . . Fabricators . | . . . . . . Repair Stations . | . . . . . . Recycling Units . | . . . . . . Scanalyzers . | . . . . . . Garrison Access . | . . . . . . Data Cores Recovered . | . . . . . . Used . | . . . . . . Hacking Detections 11 | . 4 . 7 . . Full Trace Events 7 | . 1 . 6 . . Feedback Events 1 | . . . 1 . . Corruption 1 | . . . 1 . . Feedback Blocked . | . . . . . . Robot Schematics Acquired . | . . . . . . Robots Built . | . . . . . . Authchips . | . . . . . . Time . | . . . . . . Total Robot Build Rating . | . . . . . . Part Schematics Acquired 2 | . . . 2 . . Parts Built . | . . . . . . Authchips . | . . . . . . Time . | . . . . . . Total Part Build Rating . | . . . . . . Parts Repaired 1 | . . . 1 . . Time 32 | . . . 32 . . Parts Recycled . | . . . . . . Recycled Matter . | . . . . . . Retrieved Matter . | . . . . . . Retrieved Components . | . . . . . . Parts Scanalyzed 2 | . . . 2 . . Part Schematics Acquired 2 | . . . 2 . . Parts Damaged . | . . . . . . Bothacking | -11 -10 -10 -9 -9 -9 ------------ Run | Scr Mat Min Mat Min Exi Used RIF Installer . | . . . . . . Robots Hacked . | . . . . . . Non-combat . | . . . . . . Combat . | . . . . . . Robot Hacks Applied . | . . . . . . Relay Couplers Released . | . . . . . . Fabnet Peak Effective % . | . . . . . . Robots Rewired . | . . . . . . Allies Hacked . | . . . . . . Hacks Repelled . | . . . . . . Allies | -11 -10 -10 -9 -9 -9 -------- Run | Scr Mat Min Mat Min Exi Total Allies 3 | . . 2 . 1 . Largest Group 2 | . . 2 2 1 1 Highest-Rated Group 45 | . . 45 45 31 31 Highest-Rated Ally 31 | . . 31 31 31 31 Total Orders . | . . . . . . Ally Attacks 12 | . . 3 9 . . Total Damage 188 | . . 64 124 . . Kills 4 | . . 1 3 . . Allies Corrupted . | . . . . . . Allies Melted . | . . . . . . Intel | -11 -10 -10 -9 -9 -9 ------- Run | Scr Mat Min Mat Min Exi Robot Analysis Total 3 | . 3 . . . . Derelict Logs Recovered 4 | . . 1 . 3 . Drone Launches . | . . . . . . Drone Recoveries . | . . . . . . Exploration | -11 -10 -10 -9 -9 -9 ------------- Run | Scr Mat Min Mat Min Exi Turns Passed 5139 | 32 707 1044 1634 1095 627 Spaces Moved 2974 | 20 487 579 848 645 395 Core 5 | . . . . . 5 Treads 2524 | . 109 579 848 645 343 Legs 117 | 20 64 . . . 33 Wheels 314 | . 314 . . . . Hover . | . . . . . . Flight 14 | . . . . . 14 Fastest Speed 32 | 120 95 160 160 160 32 Average Speed 150 | 120 112 160 160 160 148 Slowest Speed 160 | 120 160 160 160 160 160 Overloaded Moves . | . . . . . . Propulsion Burnouts . | . . . . . . Robots Hopped 4 | . . . . . 4 Cave-ins Triggered . | . . . . . . Exploration Rate (%) 74 | 3 86 99 86 99 76 Regions Visited 5 Branch Regions 3 Pre-discovered Areas 1 | . . 1 . . . Known Exits Taken 2 | . . 1 1 . . Unknown Exits Taken 3 | 1 1 . . 1 . Scrap Searched 2 | . . 1 . 1 . Spaces Dug 5 | . . . 5 . . Terrain Destroyed 62 | . . 18 29 . 15 Melee 5 | . . . 5 . . Projectile 2 | . . . 1 . 1 AOE 55 | . . 18 23 . 14 Terrain Rammed . | . . . . . . Walls Destroyed . | . . . . . . Machines Disabled . | . . . . . . Actions | -11 -10 -10 -9 -9 -9 --------- Run | Scr Mat Min Mat Min Exi Total 3420 | 23 583 668 1034 687 425 Wait 220 | . 36 62 85 31 6 Move 2963 | 19 486 578 847 644 389 Hop 2 | . . . . . 2 Pick Up 37 | 1 15 5 13 . 3 Fast Attach 9 | 1 . . 7 1 . Attach 12 | . 1 . 4 . 7 Detach . | . . . . . . Swap 34 | . 7 3 18 1 5 Drop 32 | . 7 5 15 . 5 Fire 102 | 2 31 15 40 10 4 Melee 5 | . . . 5 . . Ram . | . . . . . . Kick 4 | . . . . . 4 Crush . | . . . . . . Escape Stasis . | . . . . . . Rewire . | . . . . . . Trap . | . . . . . . Miscellaneous . | . . . . . . Route ------- -11/Scrapyard -10/Materials (discovered 5 exits: *Mat x3 / *Min x2) -10/Mines (discovered 2 exits: *Mat x2) -9/Materials (discovered 4 exits: [*Mat x3] / *Min) -9/Mines (discovered 3 exits: [*Mat x2] / *Exi) -9/Exiles (discovered 1 exit: [*Min]) History --------- Turn | Location | Event 8 | -11/Scrapyard | Discovered new exit (range 2) 33 | -11/Scrapyard | Entered Materials 221 | -10/Materials | Discovered new exit (range 9) 274 | -10/Materials | Discovered new exit (range 9) 278 | -10/Materials | Identified exit to Materials 313 | -10/Materials | Build established: Mutant 696 | -10/Materials | Discovered new exit (range 16) 740 | -10/Materials | Entered Mines 780 | -10/Mines | Met a Derelict who couldn't figure out how to use a Trap Extractor 927 | -10/Mines | Learned Materials terminal intel 1222 | -10/Mines | Discovered exit to Materials (range 12) 1253 | -10/Mines | Discovered exit to Materials (range 7) 1260 | -10/Mines | Learned location of Storage (-8) 1784 | -10/Mines | Entered Materials 1784 | -9/Materials | Accompanied by 2 allies 1784 | -9/Materials | Evolved 2 slots: Utility x2 1785 | -9/Materials | Loaded intel: 12 terminal locations 1789 | -9/Materials | Led the pair of lost Derelicts to an unsafe place 2040 | -9/Materials | Discovered new exit (range 4) 2046 | -9/Materials | Identified exit to Mines 2441 | -9/Materials | Discovered new exit (range 16) 2639 | -9/Materials | Repaired Disposable Heat Sink 2984 | -9/Materials | Discovered new exit (range 11) 3418 | -9/Materials | Entered Mines 3684 | -9/Mines | Discovered new exit (range 8) 3727 | -9/Mines | Discovered new exit (range 5) 3837 | -9/Mines | Learned 2 Materials zone layouts 3857 | -9/Mines | Deemed a non-threat by the Exiles lab entrance 3859 | -9/Mines | Discovered new exit (range 5) 4320 | -9/Mines | Received a Mining Laser from a helpful Derelict 4363 | -9/Mines | Found a hidden stash of uninstalled traps 4513 | -9/Mines | Entered Exiles 4513 | -9/Exiles | Accompanied by 1 ally 4537 | -9/Exiles | Discovered new exit (range 15) 4555 | -9/Exiles | Met 8R-AWN 4581 | -9/Exiles | Met EX-HEX 4643 | -9/Exiles | Met EX-BIN 4670 | -9/Exiles | Aligned with FarCom system 4672 | -9/Exiles | Given EX-Vault access code 4710 | -9/Exiles | Opened EX-Vault 4727 | -9/Exiles | Found Potential Leg 4730 | -9/Exiles | Found Potential Leg 4820 | -9/Exiles | Warned to stay clear of 0b10 Research branches 4947 | -9/Exiles | Met EX-DEC 4970 | -9/Exiles | Visited The Gauntlet 5058 | -9/Exiles | Attacked by the Exiles 5098 | -9/Exiles | Core integrity fell below 50% 5122 | -9/Exiles | Core integrity fell below 20% 5140 | -9/Exiles | Destroyed by 8R-AWN with 8R-AWN's Boregun Last Messages --------------- 05133_ Penetrated by HV Slug. 05133_ HV Slug penetrates Machine. 05133_ Machine disabled. 05133_ VTOL Module destroyed. 05135_ Acquired 7 matter. 05135_ Penetrated by HV Slug. 05135_ HV Slug penetrates Earth. 05135_ HV Slug penetrates Wall. 05136_ #ITLKV&EHRHRZJP